Cogmind - Beta 14 @@@ ROGUE MODE // 2024.08.17 @ 15:55:58 Player: satan5 Result: Destroyed by Autobeam Turret with Autobeam Performance ------------- Evolutions (0) 0 Regions Visited (2) 400 Robots Destroyed (41) 205 Value Destroyed (705) 705 Prototype IDs (1) 20 Alien Tech Used (0) 0 Bonus (0) 0 TOTAL SCORE: 1330 Bonus ------- None Cogmind --------- Core Integrity 0/250 Matter 287/300 Energy 23/100 System Corruption 0% Temperature Cool (12) Movement Walking (190) Ox1 Location -10/Subcaves Parts ------- > --- POWER (1) -------- (None) > --- PROPULSION (2) --- Aluminum Leg Aluminum Leg > --- UTILITY (2) ------ Large Storage Unit Structural Scanner > --- WEAPON (2) ------- Spread Laser > --- INVENTORY (15) --- Aluminum Leg Aluminum Leg Improved Terrain Scanner Assault Rifle Assault Rifle Assault Rifle Mining Claw Peak State ------------ > --- POWER ------------ (None) > --- PROPULSION ------- Aluminum Leg Aluminum Leg > --- UTILITY ---------- Large Storage Unit Power Bank > --- WEAPON ----------- Spread Laser Spread Laser > --- INVENTORY -------- Aluminum Leg Aluminum Leg Structural Scanner Improved Terrain Scanner Assault Rifle Assault Rifle Assault Rifle Mining Claw [Rating: 17] Favorites ----------- Power Ion Engine Engine Ion Engine Propulsion Aluminum Leg Leg Aluminum Leg Utility Hacking Suite Device Seismic Detector Storage Large Storage Unit Hackware Hacking Suite Weapon Spread Laser Energy Gun Spread Laser Ballistic Gun Assault Rifle Launcher Grenade Launcher Slashing Weapon Mining Claw Build | -11 -10 -10 ------- Run | Yrd Mat Sub Slots Evolved . | . . . Power . | . . . Propulsion . | . . . Utility . | . . . Weapon . | . . . Parts Attached 27 | 5 12 10 Power 2 | 1 . 1 Engine 2 | 1 . 1 Core . | . . . Reactor . | . . . Propulsion 7 | 1 4 2 Treads . | . . . Leg 7 | 1 4 2 Wheel . | . . . Hover . | . . . Flight . | . . . Utility 6 | 1 3 2 Device 3 | . 1 2 Storage 2 | 1 1 . Processor . | . . . Hackware 1 | . 1 . Protection . | . . . Artifact . | . . . Weapon 12 | 2 5 5 Energy Gun 6 | . 2 4 Energy Cannon . | . . . Ballistic Gun 3 | 2 1 . Ballistic Cannon . | . . . Launcher 2 | . 1 1 Special Weapon . | . . . Impact Weapon . | . . . Slashing Weapon 1 | . 1 . Piercing Weapon . | . . . Special Melee Weapon . | . . . Unidentified Prototypes 1 | . . 1 Parts Lost 8 | . . 8 Power 2 | . . 2 Propulsion 2 | . . 2 Utility . | . . . Weapon 4 | . . 4 Highest Loss Streak 4 | . . 4 To Critical Strikes . | . . . Average Slot Usage (%) 98 | . 98 99 Engine 13 | . 14 13 Leg 27 | . 27 28 Storage 14 | . 14 14 Hackware 13 | . 12 13 Energy Gun 18 | . 14 27 Ballistic Gun 8 | . 13 . Peak Build Rating 17 | 5 12 17 Average Rating 10 | 4 10 12 On Entrance 5 | . 5 11 Naked Turns . | . . . Heaviest Build 31 | 13 31 31 Greatest Support 20 | 10 20 20 Greatest Overweight (x) 1 | 1 1 1 Average Overweight (x) . | . . 1 Largest Inventory Capacity 15 | 8 15 15 Average Capacity 13 | 7 13 15 Most Carried 15 | 5 15 14 Average Carried 11 | 3 12 11 Final Capacity 15 | 8 15 15 Final Carried 14 | 5 14 7 Class Distribution -------------------- 100% | Mutant Dominant Class ---------------- Mutant | -10/Materials Mutant | -10/Subcaves Resources | -11 -10 -10 ----------- Run | Yrd Mat Sub Matter Collected 686 | 286 318 82 Remotely . | . . . Salvage Created 893 | 142 606 145 Parts 81 | 10 59 12 Haulers Intercepted 2 | . 2 . Recyclers Shooed 1 | 1 . . Parts Field Recycled . | . . . Retrieved Matter . | . . . Parts Self-Destructed 6 | . . 6 Prevented . | . . . Kills | -11 -10 -10 ------- Run | Yrd Mat Sub Combat Hostiles Destroyed 24 | . 15 9 Guns 21 | . 12 9 AOE 3 | . 3 . Classes Destroyed 11 | 2 7 2 Worker 2 | . 2 . Builder 3 | . 3 . Tunneler 3 | 3 . . Hauler 2 | . 2 . Recycler 1 | 1 . . Operator 2 | . 2 . Turret 1 | . . 1 Watcher 3 | . 3 . Swarmer 13 | . 9 4 Grunt 6 | . 6 . Subdweller 5 | . . 5 Best Kill Streak 6 | 4 6 4 Combat Bots Only 4 | . 3 4 Max Kills in Single Turn 3 | 2 3 1 Gunslinging . | . . . Exploded 2 | . 2 . Melee . | . . . Uniques/NPCs Destroyed . | . . . Combat | -11 -10 -10 -------- Run | Yrd Mat Sub Hostile Shots Fired 164 | . 49 115 Missed 58 | . 17 41 Damage Taken 1265 | . 421 844 Core 252 | . 62 190 Absorbed by Shields . | . . . Core Remaining (%) 100 | 100 . . Volleys Fired 100 | 9 63 28 Largest 2 | 2 2 2 Hottest 130 | 40 130 130 Shots Fired 198 | 18 124 56 Gun 195 | 18 122 55 Cannon . | . . . Launcher 3 | . 2 1 Special . | . . . Kinetic 100 | 18 82 . Thermal 95 | . 40 55 Explosive 3 | . 2 1 Electromagnetic . | . . . Robot Hit Streak 20 | 4 10 20 Robot Miss Streak 9 | 2 9 7 Penetration Max . | . . . Secondary Targets . | . . . Shots Hit Robots 149 | 10 85 54 Core Hits 127 | 7 60 60 Critical Kills . | . . . Critical Parts Destroyed 1 | 1 . . Critical Strikes 1 | 1 . . Destroy 1 | 1 . . Melee Attacks 7 | . 7 . Impact . | . . . Slashing 7 | . 7 . Piercing . | . . . Sneak Attacks . | . . . Combat Hostiles . | . . . Follow-up Attacks . | . . . Damage Inflicted 2138 | 105 1172 861 Guns 1788 | 105 929 754 Cannons . | . . . Explosions 350 | . 243 107 Melee . | . . . Ramming . | . . . Kinetic 684 | 105 579 . Thermal 1104 | . 350 754 Explosive 350 | . 243 107 Electromagnetic . | . . . Impact . | . . . Slashing . | . . . Piercing . | . . . Highest Corruption . | . . . Average Corruption . | . . . Corruption Purged . | . . . Corruption Blocked . | . . . Overload Shots . | . . . Overflow Damage 8 | . 8 . Projectiles . | . . . Explosions 8 | . 8 . Melee . | . . . Knockbacks . | . . . Impact . | . . . Kinetic . | . . . Secondary . | . . . Self-Inflicted Damage 31 | . . 31 Shots 1 | . . 1 Rammed . | . . . Targets Rammed . | . . . Kicked . | . . . Crushed . | . . . Highest Temperature 376 | . 376 87 Average Temperature 73 | . 98 29 Received Heat Transfer 402 | . 141 261 Siege Activations . | . . . Robots Corrupted . | . . . Combat Hostiles . | . . . Parts Fried . | . . . Impact Corruptions . | . . . Robots Melted . | . . . Combat Hostiles . | . . . Parts Melted . | . . . Heat Transferred 1365 | . 430 935 Parts Sabotaged . | . . . Parts Stolen . | . . . Parts Stripped . | . . . Power Chain Reactions . | . . . Alert | -11 -10 -10 ------- Run | Yrd Mat Sub Peak Influence 197 | 20 197 . Initial 13 | . 13 . Average 90 | 7 96 . Maximum Alert Level . | . . . Low Security (%) 100 | 100 100 . Level 1 . | . . . Level 2 . | . . . Level 3 . | . . . Level 4 . | . . . Level 5 . | . . . High Security . | . . . Max Security . | . . . Squads Dispatched 2 | . 2 . Investigation . | . . . Extermination . | . . . Reinforcement 2 | . 2 . Assault . | . . . Garrison . | . . . Intercept . | . . . Searches Triggered . | . . . Construction Impeded . | . . . Haulers Reinforced . | . . . Active Scanning Responses . | . . . Cargo Convoy Interrupts . | . . . Stealth | -11 -10 -10 --------- Run | Yrd Mat Sub Distress Signals . | . . . Communications Jammed . | . . . Distress Signals . | . . . Times Spotted 43 | . 28 15 Peak Tracking Total 6 | . 3 6 Tactical Retreats 4 | . 1 3 Traps | -11 -10 -10 ------- Run | Yrd Mat Sub Traps Triggered 2 | . 2 . Indirectly . | . . . Trap Hack Attempts . | . . . Triggered . | . . . Disarmed . | . . . Reprogrammed . | . . . Reused . | . . . Traps Extracted . | . . . Installed . | . . . Triggered . | . . . Machines | -11 -10 -10 ---------- Run | Yrd Mat Sub Machines Disabled . | . . . Max in Single Turn . | . . . Machines Repaired . | . . . Machines Dismantled . | . . . Machines Sabotaged . | . . . Overloaded Fab Kills . | . . . Hacking | -11 -10 -10 --------- Run | Yrd Mat Sub Machines Accessed 8 | . 5 3 Terminals 5 | . 5 . Fabricators . | . . . Repair Stations . | . . . Recycling Units . | . . . Scanalyzers . | . . . Garrison Access . | . . . Total Hacks 25 | . 19 6 Successful 16 | . 10 6 Failed 9 | . 9 . Catastrophic 1 | . 1 . Database Lockouts . | . . . Manual 15 | . 14 1 Terminals 19 | . 19 . Fabricators . | . . . Repair Stations . | . . . Recycling Units . | . . . Scanalyzers . | . . . Garrison Access . | . . . Terminal Hacks 10 | . 4 6 Record 4 | . . 4 Open Door 1 | . . 1 Unreport Threat 1 | . 1 . Locate Traps 1 | . 1 . Hauler Manifests 1 | . 1 . Zone Layout 1 | . 1 . Release Object 1 | . . 1 Fabricator Hacks . | . . . Repair Station Hacks . | . . . Recycling Unit Hacks . | . . . Scanalyzer . | . . . Garrison Access Hacks . | . . . Unauthorized Hacks 6 | . 6 . Terminals 6 | . 6 . Botnet 4 | . 4 . Disrupt 1 | . 1 . Operators 1 | . 1 . Fabricators . | . . . Repair Stations . | . . . Recycling Units . | . . . Scanalyzers . | . . . Garrison Access . | . . . Data Cores Recovered . | . . . Used . | . . . Hacking Detections 5 | . 5 . Full Trace Events . | . . . Feedback Events . | . . . Feedback Blocked . | . . . Robot Schematics Acquired . | . . . Robots Built . | . . . Authchips . | . . . Time . | . . . Total Robot Build Rating . | . . . Part Schematics Acquired . | . . . Parts Built . | . . . Authchips . | . . . Time . | . . . Total Part Build Rating . | . . . Parts Repaired . | . . . Time . | . . . Parts Recycled . | . . . Recycled Matter . | . . . Retrieved Matter . | . . . Retrieved Components . | . . . Parts Scanalyzed . | . . . Part Schematics Acquired . | . . . Parts Damaged . | . . . Bothacking | -11 -10 -10 ------------ Run | Yrd Mat Sub Used RIF Installer . | . . . Robots Hacked . | . . . Non-combat . | . . . Combat . | . . . Robot Hacks Applied . | . . . Relay Couplers Released . | . . . Fabnet Peak Effective % . | . . . Robots Rewired . | . . . Allies Hacked . | . . . Hacks Repelled . | . . . Allies | -11 -10 -10 -------- Run | Yrd Mat Sub Total Allies . | . . . Largest Group . | . . . Highest-Rated Group . | . . . Highest-Rated Ally . | . . . Total Orders . | . . . Ally Attacks . | . . . Total Damage . | . . . Kills . | . . . Allies Corrupted . | . . . Allies Melted . | . . . Intel | -11 -10 -10 ------- Run | Yrd Mat Sub Robot Analysis Total . | . . . Derelict Logs Recovered . | . . . Drone Launches . | . . . Drone Recoveries . | . . . Exploration | -11 -10 -10 ------------- Run | Yrd Mat Sub Turns Passed 2541 | 124 1603 814 Spaces Moved 1149 | 57 721 371 Core 16 | 16 . . Treads . | . . . Legs 1133 | 41 721 371 Wheels . | . . . Hover . | . . . Flight . | . . . Fastest Speed 50 | 50 120 190 Average Speed 181 | 150 179 190 Slowest Speed 190 | 190 190 190 Overloaded Moves . | . . . Propulsion Burnouts . | . . . Robots Hopped . | . . . Cave-ins Triggered . | . . . Exploration Rate (%) 39 | 3 90 25 Regions Visited 2 Branch Regions 1 Pre-discovered Areas . | . . . Known Exits Taken . | . . . Unknown Exits Taken 2 | 1 1 . Scrap Searched 2 | . . 2 Spaces Dug . | . . . Terrain Destroyed 18 | . 12 6 Melee . | . . . Projectile . | . . . AOE 18 | . 12 6 Terrain Rammed . | . . . Walls Destroyed . | . . . Machines Disabled . | . . . Actions | -11 -10 -10 --------- Run | Yrd Mat Sub Total 1401 | 78 899 424 Wait 82 | . 70 12 Move 1147 | 56 720 371 Hop . | . . . Pick Up 27 | 8 18 1 Fast Attach 2 | 2 . . Attach 13 | 3 3 7 Detach . | . . . Swap 12 | . 9 3 Drop 10 | . 9 1 Fire 100 | 9 63 28 Melee 7 | . 7 . Ram . | . . . Kick . | . . . Crush . | . . . Escape Stasis . | . . . Rewire . | . . . Trap . | . . . Miscellaneous 1 | . . 1 Route ------- -11/Scrapyard -10/Materials (discovered 5 exits: [*Mat x3] / [*Min] / *Sub) -10/Subcaves (discovered 1 exit: [*Rec]) History --------- Turn | Location | Event 9 | -11/Scrapyard | Discovered new exit (range 16) 125 | -11/Scrapyard | Entered Materials 267 | -10/Materials | Discovered new exit (range 21) 309 | -10/Materials | Build established: Mutant 864 | -10/Materials | Discovered new exit (range 12) 1014 | -10/Materials | Discovered new exit (range 8) 1480 | -10/Materials | Discovered new exit (range 15) 1726 | -10/Materials | Discovered new exit (range 2) 1728 | -10/Materials | Entered Subcaves 1801 | -10/Subcaves | Core integrity fell below 50% 1819 | -10/Subcaves | Visited Clippyterm 1825 | -10/Subcaves | Learned Factory fabricator intel 1889 | -10/Subcaves | Disturbed a concealed Subdweller 1978 | -10/Subcaves | A Subdweller sparked back to life 2009 | -10/Subcaves | Found Prototype Device 2021 | -10/Subcaves | Lost 4 parts (1p1n2w) 2325 | -10/Subcaves | Released subatomizers from SUBCON Basin 2446 | -10/Subcaves | Discovered new exit (range 12) 2458 | -10/Subcaves | Core integrity fell below 20% 2527 | -10/Subcaves | Identified Power Bank 2528 | -10/Subcaves | Attached Power Bank, gained temporary slots: Power x3 2542 | -10/Subcaves | Destroyed by Autobeam Turret with Autobeam Last Messages --------------- 02465_ Lgt. Assault Rifle fries itself beyond repair. 02467_ Flight Unit fries itself beyond repair. 02468_ S-10 Pest destroyed. 02478_ Flight Unit fries itself beyond repair. 02486_ Lgt. Ion Engine fries itself beyond repair. 02511_ Aluminum Leg destroyed. 02514_ Acquired 10 matter. 02519_ Lgt. Ion Engine destroyed. 02522_ Autobeam Turret destroyed. 02527_ Discarded Hacking Suite. 02527_ Identified Power Bank. 02528_ Core temporarily expanded with Power slot. 02528_ Discarded Power Bank. 02529_ Temporary Power slot lost. 02530_ Acquired 2 matter. 02542_ Spread Laser destroyed. Map ----- +----------------------------------------------------+ | ?????????## ## #???????????????????????? | | ?????????# ## #????????????????????????? | | ?????##### #?????????????????????????? | | ?????# #?????????????????????????? | | ?????# #?????????????????????????? | | ?????# #?????????????????????????? | | ?????# ## #?????????????????????????? | | ?????# ## #?????????????????????????? | | ?????# ## ###?????????????????????????? | | ?????## ## ###?????????????????????????? | | ??????## #### ##????????????????????????? | | ???????## ##?## #????????????????????????? | | ????????####?## ## ??????????????????? | | ????????## ?# #?# #????????????????? | | ????????# ## #??# ######????????????????? | | ?????????# #???### #?????????????????????? | | ?????????## ##?????? #?????????????????????? | | ??????????## #???????#####?????????????????? | | ??????????## #???????#####?????????????????? | | ??????????## ######## ##?????????????????? | | ?????????### ######## ##?????????????????? | | ????????#### ## ## ##?????????????????? | | ??????### ##???????????????????? | | ?????## ##"???????????????????? | | ?????# %% ## ????"##????????????? | | ???### %@ # % "##????????????? | | ?### ""###???????????? | | ## ## # ### <##???????????? | | # # # # t""###???????????? | | # # ####### ##?## "###???????????? | | # #?###### ##?## "##????????????? | | ## #????### ##???? """##????????????? | | X### ######## ## ##????#######????????????? | | ## ## #########????#######????????????? | | ?##### ##########???????????????????????? | | ?????## ##???????????????????????????????? | | ??????# ##????????????????????????????????? | | ??????# ####?????????????????????????????????? | | ??????# ####??????????????????????????????????? | | ??????## ##?????????????????????????????????????? | | ???????####??????????????????????????????????????? | | ?????????????????????????????????????????????????? | | ?????????????????????????????????????????????????? | | ?????????????????????????????????????????????????? | | ?????????????????????????????????????????????????? | | ?????????????????????????????????????????????????? | | ?????????????????????????????????????????????????? | | ?????????????????????????????????????????????????? | | ?????????????????????????????????????????????????? | | ?????????????????????????????????????????????????? | +----------------------------------------------------+ Best States ------------- Heat Dissipation 25 Energy Generation 10 Energy Capacity 250 Matter Stores 300 Matter Capacity 300 Sight Range 16 Terrain Scan Density 10 Evasion (%) 55 Offensive Hacking 10 Item Schematics ----------------- None Robot Schematics ------------------ None Fabricated ------------ Nothing Alien Tech Used ----------------- None Achievements -------------- None Challenges ------------ None Game ------ Seed GreatHeartCleaver Manual? 0 Play Time 00:16:04 Cumulative 229.7 hours Start 2024.08.17 @ 15:37:27 End 2024.08.17 @ 15:55:58 Sessions 1 Manual Loads 0 Difficulty Rogue Special Mode None Game No. 94 Rogue 80 Adventurer 14 Explorer 0 Win Type - Total 16 Types 13/0/1/1/0/0/0/0/1 Lore% 46 Gallery% 74 Achievement% 66 Wizard Run 0 Options --------- Layout 1 ASCII 0 Keyboard 0 Movement Mouse Keybinds 0 Fullscreen 1 Font 20/SmallcapsGlow Map View 50x35 Zoom Use 0% Tactical HUD 1 Map Filters NONE Filters NONE Steam 1 RUN: ee0116b3-2795-459f-b703-9817ec2a4fa2